Cogmind - Beta 17.1 @@@ ROGUE MODE // 2026.09.02 @ 11:41:16 Player: Godsword Result: Self-destructed Performance ------------- Evolutions (5) 2500 Regions Visited (7) 1400 Robots Destroyed (19) 95 Value Destroyed (368) 368 Prototype IDs (3) 60 Alien Tech Used (0) 0 Bonus (200) 200 TOTAL SCORE: 4623 Bonus ------- Pacifist 200 Cogmind --------- Core Integrity 980/1000 Matter 290/300 Energy 296/300 System Corruption 0% Temperature Cool (19) Movement Hovering (34) Location -5/Upper Caves Parts ------- > --- POWER (1) -------- Enhanced Nuclear Core > --- PROPULSION (5) --- Aerolev Unit Aerolev Unit Aerolev Unit Aerolev Unit Aerolev Unit > --- UTILITY (9) ------ Transmission Jammer Medium Armor Plating Improved Light Armor Plating Advanced Hardlight Generator Hacking Suite System Shield System Shield System Shield System Shield > --- WEAPON (2) ------- Greatsword > --- INVENTORY (5) ---- Fission Core Aerolev Unit Gravmag Array Improved Datajack Peak State ------------ > --- POWER ------------ Enhanced Nuclear Core > --- PROPULSION ------- Aerolev Unit Aerolev Unit Aerolev Unit Aerolev Unit Aerolev Unit > --- UTILITY ---------- Transmission Jammer Medium Armor Plating Improved Light Armor Plating Advanced Hardlight Generator Hacking Suite System Shield System Shield System Shield System Shield > --- WEAPON ----------- Greatsword > --- INVENTORY -------- Fission Core Aerolev Unit Gravmag Array Improved Datajack [Rating: 66] Favorites ----------- Power Enhanced Nuclear Core Engine Ion Engine Power Core Enhanced Nuclear Core Propulsion Aerolev Unit Hover Unit Aerolev Unit Flight Unit Flight Unit Utility System Shield Device Transmission Jammer Processor Advanced Targeting Computer Hackware System Shield Protection Medium Armor Plating Weapon Greatsword Ballistic Gun Light Assault Rifle Launcher Grenade Launcher Slashing Weapon Greatsword Special Melee Weapon Improved Datajack Build | -11 -10 -9 -8 -7 -6 -5 -5 ------- Run | Yrd Mat Mat Mat Fac Fac Fac Upp Slots Evolved 10 | . . 2 2 2 2 2 . Power . | . . . . . . . . Propulsion 3 | . . 1 . . 2 . . Utility 7 | . . 1 2 2 . 2 . Weapon . | . . . . . . . . Parts Attached 32 | 2 5 3 6 10 3 2 1 Power 4 | . 1 . 1 1 1 . . Engine 2 | . 1 . 1 . . . . Core 2 | . . . . 1 1 . . Reactor . | . . . . . . . . Propulsion 8 | . 2 . 1 3 2 . . Treads . | . . . . . . . . Leg . | . . . . . . . . Wheel . | . . . . . . . . Hover 5 | . . . . 3 2 . . Flight 3 | . 2 . 1 . . . . Utility 14 | . 1 3 2 5 . 2 1 Device 3 | . . . . . . 2 1 Storage . | . . . . . . . . Processor 4 | . 1 1 . 2 . . . Hackware 5 | . . 2 2 1 . . . Protection 2 | . . . . 2 . . . Artifact . | . . . . . . . . Weapon 6 | 2 1 . 2 1 . . . Energy Gun . | . . . . . . . . Energy Cannon . | . . . . . . . . Ballistic Gun 3 | 2 . . 1 . . . . Ballistic Cannon . | . . . . . . . . Launcher 1 | . 1 . . . . . . Special Weapon . | . . . . . . . . Impact Weapon . | . . . . . . . . Slashing Weapon 1 | . . . . 1 . . . Piercing Weapon . | . . . . . . . . Special Melee Weapon 1 | . . . 1 . . . . Unidentified Prototypes 3 | . . . 1 1 1 . . Parts Lost 1 | . . . 1 . . . . Power 1 | . . . 1 . . . . Propulsion . | . . . . . . . . Utility . | . . . . . . . . Weapon . | . . . . . . . . Highest Loss Streak 1 | . . . 1 . . . . To Critical Strikes . | . . . . . . . . Average Backups 3 | . 2 4 3 4 4 3 4 Power . | . . . . . . . 1 Propulsion . | . . . . . 1 2 2 Utility 1 | . . 3 2 1 1 . . Weapon . | . . 1 1 . . . . Tool/Special . | . . . . . . . . Unused Backups 13 | . . 2 . 3 2 3 3 Power 5 | . . . . . 1 3 1 Propulsion 3 | . . . . 1 . . 2 Utility 3 | . . 1 . 1 1 . . Weapon 2 | . . 1 . 1 . . . Tool/Special . | . . . . . . . . Average Slot Usage (%) 82 | . 42 72 87 83 92 91 94 Engine 2 | . 3 11 8 1 . . . Core 3 | . . . . 5 6 5 5 Hover 12 | . . . . 2 32 29 29 Flight 11 | . 10 22 18 18 . . . Device 2 | . . . . . . 8 11 Processor 3 | . 3 11 9 4 . . . Hackware 28 | . . 17 35 38 33 29 29 Protection 5 | . . . . 2 13 11 11 Ballistic Gun 1 | . 21 . . . . . . Launcher 2 | . 3 11 9 1 . . . Slashing Weapon 3 | . . . . 5 6 5 5 Special Melee Weapon 1 | . . . 7 1 . . . Peak Build Rating 66 | 2 6 14 24 47 55 65 66 Average Rating 35 | 1 2 12 21 33 53 62 65 On Entrance 26 | . 2 5 14 24 44 55 65 Avg Prop Armor Cover (%) . | . . . . . . . . Naked Turns . | . . . . . . . . Heaviest Build 34 | 3 8 8 9 22 23 25 34 Greatest Support 40 | 3 8 10 14 24 40 40 40 Greatest Overweight (x) 1 | . . . . 1 . . . Average Overweight (x) . | . . . . . . . . Largest Inventory Capacity 5 | 5 5 5 5 5 5 5 5 Average Capacity 5 | 5 5 5 5 5 5 5 5 Most Carried 5 | 1 3 5 4 5 5 5 5 Average Carried 4 | . 2 4 3 4 4 4 5 Final Capacity 5 | 5 5 5 5 5 5 5 5 Final Carried 5 | 1 3 5 4 5 5 5 5 Class Distribution -------------------- 68% | Hacker-Mutant 17% | Hacker-Sprinter 13% | Mutant Dominant Class ---------------- Mutant | -10/Materials Hacker-Mutant | -9/Materials Hacker-Mutant | -8/Materials Hacker-Sprinter | -7/Factory Hacker-Mutant | -6/Factory Hacker-Mutant | -5/Factory Hacker-Mutant | -5/Upper Caves Resources | -11 -10 -9 -8 -7 -6 -5 -5 ----------- Run | Yrd Mat Mat Mat Fac Fac Fac Upp Matter Collected 655 | 220 . 29 . 213 173 20 . Remotely . | . . . . . . . . Salvage Created 349 | . . 4 83 213 . 49 . Parts 35 | . . 3 10 18 . 4 . Haulers Intercepted 1 | . . . . 1 . . . Recyclers Shooed . | . . . . . . . . Parts Field Recycled . | . . . . . . . . Retrieved Matter . | . . . . . . . . Parts Self-Destructed . | . . . . . . . . Prevented . | . . . . . . . . Parts Restored . | . . . . . . . . Kills | -11 -10 -9 -8 -7 -6 -5 -5 ------- Run | Yrd Mat Mat Mat Fac Fac Fac Upp Combat Hostiles Destroyed 7 | . . . 7 . . . . AOE 7 | . . . 7 . . . . Classes Destroyed 10 | . . 1 5 4 . . . Worker 1 | . . . . 1 . . . Builder 3 | . . . . 2 . 1 . Tunneler 1 | . . . 1 . . . . Hauler 1 | . . . . 1 . . . Recycler 1 | . . . . 1 . . . Operator 2 | . . . 1 1 . . . Watcher 3 | . . 1 1 . . 1 . Swarmer 4 | . . . 4 . . . . Grunt 2 | . . . 2 . . . . Hunter 1 | . . . 1 . . . . Best Kill Streak 7 | . . 1 7 3 . 1 . Combat Bots Only 5 | . . . 5 . . . . Max Kills in Single Turn 5 | . . 1 5 1 . 1 . Gunslinging . | . . . . . . . . Exploded 3 | . . . 3 . . . . Melee . | . . . . . . . . Uniques/NPCs Destroyed . | . . . . . . . . Combat | -11 -10 -9 -8 -7 -6 -5 -5 -------- Run | Yrd Mat Mat Mat Fac Fac Fac Upp Hostile Shots Fired 49 | . . 3 12 18 . . 16 Missed 23 | . . 2 5 8 . . 8 Hits 26 | . . 1 7 10 . . 8 Projectile 26 | . . 1 7 10 . . 8 Damage Taken 376 | . . 36 138 82 . . 120 Core 93 | . . 11 31 31 . . 20 Absorbed by Shields . | . . . . . . . . Regen/Repaired (Parts) 25 | . . . . 25 . . . Core Remaining (%) 97 | 100 100 97 94 95 100 . . Volleys Fired 10 | . . 3 5 2 . . . Largest 1 | . . 1 1 1 . . . Hottest 30 | . . 30 30 30 . . . Shots Fired 10 | . . 3 5 2 . . . Gun . | . . . . . . . . Cannon . | . . . . . . . . Launcher 10 | . . 3 5 2 . . . Special . | . . . . . . . . Kinetic . | . . . . . . . . Thermal . | . . . . . . . . Explosive 10 | . . 3 5 2 . . . Electromagnetic . | . . . . . . . . Robot Hit Streak 1 | . . 1 1 1 . . . Robot Miss Streak 2 | . . 2 1 1 . . . Penetration Max . | . . . . . . . . Secondary Targets . | . . . . . . . . Shots Hit Robots 13 | . . 1 1 8 . 3 . Core Hits 22 | . . 2 14 5 . 1 . Critical Kills . | . . . . . . . . Critical Parts Destroyed . | . . . . . . . . Critical Strikes . | . . . . . . . . Melee Attacks 20 | . . . . 15 . 4 1 Impact . | . . . . . . . . Slashing 20 | . . . . 15 . 4 1 Piercing . | . . . . . . . . Sneak Attacks 7 | . . . . 5 . 2 . Combat Hostiles . | . . . . . . . . Follow-up Attacks . | . . . . . . . . Damage Inflicted 2294 | . . 44 1202 755 . 293 . Guns . | . . . . . . . . Cannons . | . . . . . . . . Explosions 1291 | . . 44 1202 45 . . . Melee 1003 | . . . . 710 . 293 . Ramming . | . . . . . . . . Kinetic . | . . . . . . . . Thermal . | . . . . . . . . Explosive 1291 | . . 44 1202 45 . . . Electromagnetic . | . . . . . . . . Impact . | . . . . . . . . Slashing 1003 | . . . . 710 . 293 . Piercing . | . . . . . . . . Highest Corruption . | . . . . . . . . Average Corruption . | . . . . . . . . Corruption Purged . | . . . . . . . . Corruption Blocked . | . . . . . . . . Overload Shots . | . . . . . . . . Overflow Damage 573 | . . . 149 262 . 162 . Projectiles . | . . . . . . . . Explosions 149 | . . . 149 . . . . Melee 424 | . . . . 262 . 162 . Knockbacks . | . . . . . . . . Impact . | . . . . . . . . Kinetic . | . . . . . . . . Secondary . | . . . . . . . . Self-Inflicted Damage 53 | . . 23 30 . . . . Shots 2 | . . 1 1 . . . . Rammed . | . . . . . . . . Targets Rammed . | . . . . . . . . Kicked . | . . . . . . . . Crushed . | . . . . . . . . Highest Temperature 20 | . . . . 1 . . 20 Average Temperature 10 | . . . . 1 . . 12 Received Heat Transfer 132 | . . 9 36 30 . . 57 Siege Activations . | . . . . . . . . Martial Activations . | . . . . . . . . Shielding Activations . | . . . . . . . . Robots Disrupted . | . . . . . . . . Combat Hostiles . | . . . . . . . . Robots Corrupted . | . . . . . . . . Combat Hostiles . | . . . . . . . . Parts Fried . | . . . . . . . . Impact Corruptions . | . . . . . . . . Robots Melted . | . . . . . . . . Combat Hostiles . | . . . . . . . . Parts Melted . | . . . . . . . . Heat Transferred . | . . . . . . . . Parts Sabotaged . | . . . . . . . . Parts Stolen . | . . . . . . . . Parts Stripped . | . . . . . . . . Power Chain Reactions . | . . . . . . . . Alert | -11 -10 -9 -8 -7 -6 -5 -5 ------- Run | Yrd Mat Mat Mat Fac Fac Fac Upp Maximum Alert Level 1 | . . . 1 . . . . Low Security (%) 96 | 100 100 100 74 100 100 100 . Level 1 3 | . . . 25 . . . . Level 2 . | . . . . . . . . Level 3 . | . . . . . . . . Level 4 . | . . . . . . . . Level 5 . | . . . . . . . . High Security . | . . . . . . . . Max Security . | . . . . . . . . Peak Influence 302 | . 30 37 302 169 82 45 . Initial 132 | . . 3 7 132 82 27 . Average 73 | . 10 13 112 132 70 29 . Influence Increases 702 | . 30 37 335 157 15 53 75 Destroy 0b10 Robot/C 140 | . . . 140 . . . . Destroy 0b10 Robot/NC 60 | . . 5 15 30 . 10 . Destroy Leader 28 | . . 2 22 2 . 2 . Successful Hack 53 | . . . 9 23 . 21 . Disable Machine 75 | . . 15 60 . . . . Destroy Structure 121 | . . 15 74 12 . 20 . Partial Spotted 45 | . . . . 30 15 . . Lose Combat Pursuer 180 | . 30 . 15 60 . . 75 Influence Decreases 645 | . 20 30 60 280 127 90 38 Entered New Map 302 | . . 7 10 160 87 30 8 Time Decay 333 | . 20 23 40 120 40 60 30 Lost Part 10 | . . . 10 . . . . Squads Dispatched 5 | . . . . 3 . 2 . Investigation 1 | . . . . . . 1 . Extermination 1 | . . . . 1 . . . Reinforcement 3 | . . . . 2 . 1 . Assault . | . . . . . . . . Garrison . | . . . . . . . . Intercept . | . . . . . . . . Searches Triggered . | . . . . . . . . Construction Impeded 1 | . . . . . . 1 . Haulers Reinforced 1 | . . . . 1 . . . Active Scanning Responses . | . . . . . . . . Cargo Convoy Interrupts . | . . . . . . . . Stealth | -11 -10 -9 -8 -7 -6 -5 -5 --------- Run | Yrd Mat Mat Mat Fac Fac Fac Upp Distress Signals 1 | . . . 1 . . . . Communications Jammed . | . . . . . . . . Distress Signals . | . . . . . . . . Times Spotted 37 | . 1 6 10 8 . 1 11 Peak Tracking Total 8 | . 2 5 8 5 . 1 6 Tactical Retreats 6 | . 1 . 1 3 . . 1 Traps | -11 -10 -9 -8 -7 -6 -5 -5 ------- Run | Yrd Mat Mat Mat Fac Fac Fac Upp Traps Triggered 1 | . . . . . . 1 . Indirectly . | . . . . . . . . Trap Hack Attempts . | . . . . . . . . Triggered . | . . . . . . . . Disarmed . | . . . . . . . . Reprogrammed . | . . . . . . . . Reused . | . . . . . . . . Traps Extracted . | . . . . . . . . Installed . | . . . . . . . . Triggered . | . . . . . . . . Machines | -11 -10 -9 -8 -7 -6 -5 -5 ---------- Run | Yrd Mat Mat Mat Fac Fac Fac Upp Machines Disabled 5 | . . 1 4 . . . . Max in Single Turn 2 | . . 1 2 . . . . Machines Repaired . | . . . . . . . . Machines Dismantled . | . . . . . . . . Machines Sabotaged . | . . . . . . . . Overloaded Fab Kills . | . . . . . . . . Hacking | -11 -10 -9 -8 -7 -6 -5 -5 --------- Run | Yrd Mat Mat Mat Fac Fac Fac Upp Machines Accessed 14 | . 3 3 1 4 1 1 1 Terminals 8 | . 2 2 1 3 . . . Fabricators 1 | . . . . . . 1 . Repair Stations 1 | . . . . 1 . . . Recycling Units 2 | . 1 . . . 1 . . Scanalyzers 1 | . . 1 . . . . . Garrison Access . | . . . . . . . . Total Hacks 36 | . 4 7 6 14 1 3 1 Successful 15 | . . 4 1 7 1 1 1 Failed 21 | . 4 3 5 7 . 2 . Catastrophic 6 | . 1 . 2 3 . . . Database Lockouts . | . . . . . . . . Manual 13 | . 2 1 6 4 . . . Terminals 20 | . 2 3 6 9 . . . Fabricators 3 | . . . . . . 3 . Repair Stations 5 | . . . . 5 . . . Recycling Units 3 | . 2 . . . 1 . . Scanalyzers 4 | . . 4 . . . . . Garrison Access . | . . . . . . . . Terminal Hacks 7 | . . 2 1 3 . . 1 Part Schematic 2 | . . . . 2 . . . Open Door 1 | . . . . . . . 1 Level Access Points 2 | . . 1 1 . . . . Branch Access Points 1 | . . . . 1 . . . Zone Layout 1 | . . 1 . . . . . Fabricator Hacks 1 | . . . . . . 1 . Build 1 | . . . . . . 1 . Repair Station Hacks 4 | . . . . 4 . . . Scan Component 2 | . . . . 2 . . . Repair 2 | . . . . 2 . . . Recycling Unit Hacks 1 | . . . . . 1 . . Retrieve Components 1 | . . . . . 1 . . Scanalyzer 2 | . . 2 . . . . . Retrieve Study 2 | . . 2 . . . . . Garrison Access Hacks . | . . . . . . . . Unauthorized Hacks . | . . . . . . . . Terminals . | . . . . . . . . Fabricators . | . . . . . . . . Repair Stations . | . . . . . . . . Recycling Units . | . . . . . . . . Scanalyzers . | . . . . . . . . Garrison Access . | . . . . . . . . Data Cores Recovered 1 | . . . . 1 . . . Used . | . . . . . . . . Hacking Detections 12 | . 3 3 1 4 . 1 . Full Trace Events . | . . . . . . . . Feedback Events . | . . . . . . . . Feedback Blocked . | . . . . . . . . Robot Schematics Acquired . | . . . . . . . . Robots Built 2 | . . . . . . 2 . Authchips . | . . . . . . . . Time 27 | . . . . . . 27 . Total Robot Build Rating 2 | . . . . . . 2 . Part Schematics Acquired 2 | . . . . 2 . . . Parts Built . | . . . . . . . . Authchips . | . . . . . . . . Time . | . . . . . . . . Total Part Build Rating . | . . . . . . . . Part Studies Acquired 2 | . . 2 . . . . . Parts Repaired 2 | . . . . 2 . . . Time 52 | . . . . 52 . . . Parts Recycled . | . . . . . . . . Recycled Matter . | . . . . . . . . Retrieved Matter . | . . . . . . . . Retrieved Components . | . . . . . . . . Parts Scanalyzed . | . . . . . . . . Part Schematics Acquired . | . . . . . . . . Parts Damaged . | . . . . . . . . Bothacking | -11 -10 -9 -8 -7 -6 -5 -5 ------------ Run | Yrd Mat Mat Mat Fac Fac Fac Upp Used RIF Installer . | . . . . . . . . Robots Hacked . | . . . . . . . . Non-combat . | . . . . . . . . Combat . | . . . . . . . . Robot Hacks Applied . | . . . . . . . . Relay Couplers Released . | . . . . . . . . Fabnet Peak Effective % . | . . . . . . . . Robots Rewired . | . . . . . . . . Allies Hacked . | . . . . . . . . Hacks Repelled . | . . . . . . . . Allies | -11 -10 -9 -8 -7 -6 -5 -5 -------- Run | Yrd Mat Mat Mat Fac Fac Fac Upp Total Allies 2 | . . . . . . 2 . Largest Group 2 | . . . . . . 2 . Highest-Rated Group 20 | . . . . . . 20 . Highest-Rated Ally 10 | . . . . . . 10 . Total Orders 1 | . . . . . . 1 . TUNNEL 1 | . . . . . . 1 . Ally Attacks . | . . . . . . . . Total Damage . | . . . . . . . . Kills . | . . . . . . . . Allies Corrupted . | . . . . . . . . Allies Melted . | . . . . . . . . Intel | -11 -10 -9 -8 -7 -6 -5 -5 ------- Run | Yrd Mat Mat Mat Fac Fac Fac Upp Active Infowar (turns) 1 | . . . . . . 1 . Jamming 1 | . . . . . . 1 . Robot Analysis Total . | . . . . . . . . Derelict Logs Recovered . | . . . . . . . . Drone Launches . | . . . . . . . . Drone Recoveries . | . . . . . . . . Exploration | -11 -10 -9 -8 -7 -6 -5 -5 ------------- Run | Yrd Mat Mat Mat Fac Fac Fac Upp Turns Passed 837 | 28 73 94 93 256 96 133 64 Spaces Moved 1615 | 48 133 212 187 370 251 241 173 Core 140 | 48 92 . . . . . . Treads . | . . . . . . . . Legs . | . . . . . . . . Wheels . | . . . . . . . . Hover 720 | . . . . 55 251 241 173 Flight 755 | . 41 212 187 315 . . . Fastest Speed 32 | 50 37 37 32 32 34 34 34 Average Speed 36 | 50 46 37 35 33 34 34 34 Slowest Speed 110 | 50 50 37 37 110 34 34 34 Overloaded Moves . | . . . . . . . . Propulsion Burnouts . | . . . . . . . . Robots Hopped 5 | . . 2 3 . . . . Potential Cave-ins 2 | . . . . 2 . . . Cave-ins Triggered . | . . . . . . . . Exploration Rate (%) 15 | 3 31 22 21 13 6 8 20 Regions Visited 7 Branch Regions 1 Pre-discovered Areas . | . . . . . . . . Known Exits Taken 2 | . . 1 1 . . . . Unknown Exits Taken 5 | 1 1 . . 1 1 1 . Scrap Searched . | . . . . . . . . Spaces Dug 7 | . . . . 6 . . 1 Terrain Destroyed 137 | . . 15 107 14 . . 1 Melee 7 | . . . . 6 . . 1 Projectile . | . . . . . . . . AOE 130 | . . 15 107 8 . . . Terrain Rammed . | . . . . . . . . Walls Destroyed . | . . . . . . . . Machines Disabled . | . . . . . . . . Actions | -11 -10 -9 -8 -7 -6 -5 -5 --------- Run | Yrd Mat Mat Mat Fac Fac Fac Upp Total 1809 | 50 143 221 202 471 262 284 176 Wait 87 | . . . 4 52 . 31 . Move 1599 | 47 132 207 181 369 250 240 173 Hop 4 | . . 2 2 . . . . Pick Up 25 | 1 4 4 1 6 5 4 . Fast Attach 22 | 2 3 2 5 8 . 1 1 Attach 11 | . 2 . 2 4 2 1 . Detach 2 | . . . . 2 . . . Swap 4 | . . 1 . 2 1 . . Drop 25 | . 2 2 2 11 4 3 1 Fire 10 | . . 3 5 2 . . . Melee 20 | . . . . 15 . 4 1 Ram . | . . . . . . . . Kick . | . . . . . . . . Crush . | . . . . . . . . Escape Stasis . | . . . . . . . . Rewire . | . . . . . . . . Trap . | . . . . . . . . Miscellaneous . | . . . . . . . . Route ------- -11/Scrapyard -10/Materials -9/Materials (discovered 3 exits: *Mat x3) -8/Materials (discovered 3 exits: *Fac x3) -7/Factory (discovered 3 exits: *Fac / Low x2) -6/Factory -5/Factory -5/Upper Caves History --------- Turn | Location | Event 10 | -11/Scrapyard | Discovered new exit (range 15) 29 | -11/Scrapyard | Entered Materials 98 | -10/Materials | Discovered new exit (range 10) 102 | -10/Materials | Entered another Materials area 102 | -9/Materials | Evolved 2 slots: Propulsion x1, Utility x1 140 | -9/Materials | Identified exit to Materials 196 | -9/Materials | Entered another Materials area 196 | -8/Materials | Evolved 2 slots: Utility x2 210 | -8/Materials | Identified exit to Factory 289 | -8/Materials | Entered Factory 289 | -7/Factory | Evolved 2 slots: Utility x2 304 | -7/Factory | Identified exit to Lower Caves 370 | -7/Factory | Repaired Flight Unit+ 398 | -7/Factory | Repaired Flight Unit+ 533 | -7/Factory | Discovered new exit (range 14) 545 | -7/Factory | Entered another Factory area 545 | -6/Factory | Evolved 2 slots: Propulsion x2 637 | -6/Factory | Discovered new exit (range 5) 641 | -6/Factory | Entered another Factory area 641 | -5/Factory | Evolved 2 slots: Utility x2 701 | -5/Factory | Fabricated T-07 Excavator? 770 | -5/Factory | Discovered new exit (range 6) 774 | -5/Factory | Entered Upper Caves 777 | -5/Upper Caves | Spotted B-75 Beast 812 | -5/Upper Caves | Build established: Hacker-Mutant 838 | -5/Upper Caves | Self-destructed Last Messages --------------- 00734_ Destroyed Structural Scanner. 00734_ Destroyed Lgt. Ion Engine. 00734_ Destroyed Wheel. 00734_ ALERT: Construction progress impeded, dispatching reinforcements to local area. 00742_ The unstable cave ceiling collapses. 00742_ Terrain Scan Processor crushed. 00760_ Dropped Mic. Fission Core. 00761_ Acquired Fission Core. 00770_ EXIT=FOUND LOCATION=UNKNOWN GOAL=ESCAPE 00784_ QR-ZPZ(S) suffers critical hit (Blast). 00784_ QR-ZPZ(S) destroyed. 00789_ Connecting with WAR.Sys... 00789_ Current location identified: Upper Caves >>Open Door Sealed Heavy Doors opened. 00790_ Dropped Imp. Coolant Injector. 00791_ Acquired Adv. Hardlight Generator. Map ----- +----------------------------------------------------+ | | | | | | | ?????????????????????????????????????????????????? | | ?????????????????????????????????????????????????? | | ?????????????????????????????????????????????????? | | ?????????????????????????????????????????????????? | | ?????????????????????????????????????????????????? | | ?????????????????????????????????????????????????? | | ?????????????????????????????????????????????????? | | ?????????????????????????????????????????????????? | | ?????????????????????????????????????????????????? | | ?????????????????????????????????????????????????? | | ?????????????????????????????????????????????????? | | ?????????????????????????????????????????????????? | | ???????????????###????????????#####??????????????? | | ?????????????###!##???????????"""""??????????????? | | ?????????????#X#/]#??????????#"" ""#?????????????? | | ?????????????# ! #?##???????#"" ""??????????????? | | ?????????????# #[##?# ###?????#" "####???????????? | | ?????????????# ###??# ##???##" "# #???????????? | | ?????????????## ###### #??##"" "" #???????????? | | ????????????### ## g #??# ##??????????? | | ???# ####### # # ##g ###?# ##?????????? | | ???# ###gg ### ### ##????????? | | ??# #?# @# #?# #????????? | | ######### #####?## #?# ##????????? | | ??????????????# #??????## ## ### ##?????????? | | ???????????#### #??????# ### ## ##?????????? | | ???????????# #??????####?# #?????????? | | ???????????# ####??????????#"# ##????????? | | ???????????# #?????????????#### ##???????? | | ???????????# #????????????????# #???????? | | ???????????# #????????????????# #???????? | | ???????????# #?##?????????????# ## #???????? | | ???????????# ## ##????????????### ### #???????? | | ???????????# # #?????#????????# ## #???????? | | ??????????## #????? ??????### ##??????? | | ??????????# #???#? ??????# ##?????? | | ##???????# ##??? # ## #?????? | | ####### ##???# ## ### #?????? | | "" ##????# #??## #### #?????? | | %##?????# ###?# "##??# #?????? | | ### % #??????# ### #???## ##?????? | | ??# %##???#### #???## ##??????? | | ?## #????# #??## #???????? | | ## # #????# ## #???## #???????? | | ## ###?## ## #????# #???????? | | ## # ### #?????# ##???????? | | ??## ##?????# ###????????? | +----------------------------------------------------+ Best States ------------- Heat Dissipation 40 Coolant Potential 80 Energy Generation 17 Energy Capacity 300 Matter Stores 300 Matter Capacity 300 Sight Range 16 Terrain Scan Density 10 Corruption Block 8 Armor Coverage 375 Evasion (%) 63 Targeting Accuracy 8 Melee Accuracy 6 Offensive Hacking 10 Defensive Hacking 40 Item Schematics ----------------- Imp. Cooling System | -7/Factory | Hacked Nuclear Pulse Array | -7/Factory | Hacked Robot Schematics ------------------ None Fabricated ------------ T-07 Excavator | x2 | -5/Factory | Preloaded Repaired ---------- Flight Unit | 30% | -7/Factory Flight Unit | 45% | -7/Factory Studied --------- Flight Unit | -9/Materials | Hacked Grenade Launcher | -9/Materials | Hacked Alien Tech Used ----------------- None Achievements -------------- None Challenges ------------ None Game ------ Seed TerrorEnergyInitializer Manual? 0 Play Time 00:23:03 Cumulative 49.2 hours Start 2026.09.02 @ 11:19:41 End 2026.09.02 @ 11:41:16 Sessions 1 Manual Loads 0 Difficulty Rogue Special Mode None Game No. 127 Rogue 127 Adventurer 0 Explorer 0 Win Type - Total 3 Types 3/0/0/0/0/0/0/0/0/0 Lore% 46 Gallery% 39 Achievement% 42 Wizard Run 0 Options --------- Layout 2 ASCII 0 Keyboard 0 Movement Mouse Keybinds 0 Fullscreen 1 Font 16/SmallcapsGlow Map View 50x49 Zoom Use 0% Tactical HUD 1 Map Filters NONE Filters NONE Steam SD RUN: 032eed84-d78d-4c0b-9ae6-917193cb7a60